fUSD/lending_fUSD_20250104
["ID","MTS","AMOUNT","RATE_DAILY","PERIOD"]
[347629031,1735985432385,-150.0,9.592e-05,2]
[347629033,1735985432394,-150.0,9.604e-05,2]
[347629035,1735985432403,-150.0,9.775e-05,2]
[347629037,1735985432412,-1200.7896,9.8e-05,2]
[347629039,1735985432421,-4404.90174452,9.8e-05,2]
[347629041,1735985432431,-53.16131556,9.821e-05,2]
[347629080,1735985437939,-96.83868444,9.821e-05,2]
[347629081,1735985437949,-150.0,9.847e-05,2]
[347629082,1735985437959,-150.0,9.875e-05,2]
[347629083,1735985437968,-505.79568548,9.899e-05,2]
[347629084,1735985437977,-501.18311666,9.899e-05,2]
[347629085,1735985437986,-503.65740767,9.899e-05,2]
[347629086,1735985437996,-466.82663248,9.899e-05,2]
[347629087,1735985438005,-500.0,9.899e-05,2]
[347629088,1735985438014,-500.0,9.899e-05,2]
[347629089,1735985438026,-500.0,9.899e-05,2]
[347629090,1735985438035,-541.21,9.899e-05,2]
[347629092,1735985438044,-501.04864358,9.899e-05,2]
[347629094,1735985438053,-500.0,9.899e-05,2]
[347629095,1735985438062,-322.95,9.899e-05,2]
[347629096,1735985438071,-500.0,9.899e-05,2]
[347629097,1735985438080,-500.0,9.899e-05,2]
[347629098,1735985438089,-226.23560124,9.899e-05,2]
[347629101,1735985439993,-273.76439876,9.899e-05,2]
[347629102,1735985440003,-439.6,9.899e-05,2]
[347629103,1735985440013,-500.0,9.899e-05,2]
[347629104,1735985440023,-820.55,9.899e-05,2]
[347629105,1735985440036,-820.55,9.899e-05,2]
[347629106,1735985440046,-500.0,9.899e-05,2]
[347629107,1735985440055,-553.07101747,9.899e-05,2]
[347629108,1735985440064,-1933.94,9.899e-05,2]
[347629109,1735985440075,-204.83,9.899e-05,2]
[347629110,1735985440084,-299.02,9.899e-05,2]
[347629111,1735985440093,-500.0,9.899e-05,2]
[347629112,1735985440103,-432.6104114,9.899e-05,2]
[347629113,1735985440113,-500.0,9.899e-05,2]
[347629114,1735985440123,-500.0,9.899e-05,2]
[347629115,1735985440132,-500.0,9.899e-05,2]
[347629116,1735985440142,-500.0,9.899e-05,2]
[347629117,1735985440152,-541.6,9.899e-05,2]
[347629118,1735985440161,-500.0,9.899e-05,2]
[347629119,1735985440171,-204.59712049,9.899e-05,2]
[347629120,1735985440181,-2015.09,9.899e-05,2]
[347629121,1735985440191,-619.65,9.899e-05,2]
[347629122,1735985440202,-500.0,9.899e-05,2]
[347629123,1735985440212,-500.0,9.899e-05,2]
[347629124,1735985440223,-500.0,9.899e-05,2]
[347629125,1735985440234,-1192.82,9.899e-05,2]
[347629126,1735985440245,-500.0,9.899e-05,2]
[347629127,1735985440255,-669.46716532,9.899e-05,2]
[347629128,1735985440268,-103.01283468,9.899e-05,2]
[347629129,1735985440286,-500.0,9.899e-05,2]
[347629130,1735985440297,-500.0,9.899e-05,2]
[347629131,1735985440309,-500.0,9.899e-05,2]
[347629132,1735985440319,-359.6121655,9.899e-05,2]
[347629133,1735985440339,-165.1778345,9.899e-05,2]
[347629134,1735985440349,-500.0,9.899e-05,2]
[347629135,1735985440358,-189.0500085,9.899e-05,2]
[347629136,1735985440371,-310.9499915,9.899e-05,2]
[347629137,1735985440381,-500.0,9.899e-05,2]
[347629138,1735985440391,-221.69505875,9.899e-05,2]
[347629139,1735985440404,-278.30494125,9.899e-05,2]
[347629140,1735985440414,-520.21,9.899e-05,2]
[347629141,1735985440424,-185.66287228,9.899e-05,2]
[347629148,1735985442909,-592.18712772,9.899e-05,2]
[347629149,1735985442919,-420.58158401,9.899e-05,2]
[347629150,1735985442931,-79.41841599,9.899e-05,2]
[347629151,1735985442941,-500.0,9.899e-05,2]
[347629152,1735985442950,-500.0,9.899e-05,2]
[347629153,1735985442959,-855.81,9.899e-05,2]
[347629154,1735985442968,-688.13,9.899e-05,2]
[347629155,1735985442977,-393.63367191,9.899e-05,2]
[347629156,1735985442988,-106.36632809,9.899e-05,2]
[347629157,1735985442997,-500.0,9.899e-05,2]
[347629158,1735985443006,-1347.70530231,9.9e-05,2]
[347629159,1735985443088,-333.35369769,9.9e-05,2]
[347629160,1735985443098,-1952.46801945,9.9e-05,2]
[347629161,1735985443377,-2143.420344,9.9e-05,2]
[347629184,1735985445874,-500.0,9.899e-05,2]
[347629185,1735985445883,-482.1194004,9.9e-05,2]
[347629186,1735985445907,-9715.11146059,9.9e-05,2]
[347629187,1735985446102,-1119.3439201,9.9e-05,2]
[347630947,1735985474113,50000.0,0.0001212,24]
[347630948,1735985497450,5007.455,0.00017,60]
[347630949,1735985504230,50000.0,0.0001212,24]
[347630950,1735985522184,150.00783986,0.0002,120]
[347630951,1735985561665,242.48624277,0.0002,120]
[347630952,1735985587253,150.0,0.0002,120]
[347630953,1735985590018,50000.0,0.0001212,24]
[347630954,1735986144515,-1500.0,7.457e-05,2]
[347630955,1735986144541,-1500.0,7.641e-05,2]
[347630956,1735986144568,-564.6262131,8.238e-05,2]
[347630957,1735986144595,-150.0,8.239e-05,2]
[347630958,1735986144625,-300.0,8.458e-05,2]
[347630959,1735986144652,-7761.57580551,8.459e-05,2]
[347630960,1735986144678,-1500.0,8.459e-05,2]
[347630961,1735986144704,-250.0,8.507e-05,2]
[347630962,1735986144729,-1500.0,8.508e-05,2]
[347630963,1735986144753,-250.0,8.509e-05,2]
[347630964,1735986144780,-150.0,8.534e-05,2]
[347630965,1735986144808,-150.0,8.58e-05,2]
[347630966,1735986144833,-1500.0,8.591e-05,2]
[347630967,1735986144859,-1500.0,8.599e-05,2]
[347630968,1735986144884,-1000.0,8.621e-05,2]
[347630969,1735986144909,-423.79798139,8.676e-05,2]
[347631010,1735986632174,-646.91,8.219e-05,2]
[347631011,1735986632183,-620.74992209,8.713e-05,2]
[347631012,1735986632195,-879.25007791,8.713e-05,2]
[347631013,1735986632204,-562.88830592,8.774e-05,2]
[347631014,1735986632215,-152.95169408,8.774e-05,2]
[347631015,1735986632224,-891.64562592,8.801e-05,7]
[347631016,1735986632235,-1433.9548487,8.801e-05,7]
[347631017,1735986632248,-1581.702501,8.801e-05,7]
[347631018,1735986632261,-705.39798492,8.801e-05,7]
[347631019,1735986632272,-3870.05261752,8.801e-05,7]
[347631020,1735986632283,-597.44523087,8.801e-05,7]
[347631021,1735986632296,-393.12090275,8.801e-05,7]
[347631022,1735986632313,-18188.07475353,8.801e-05,7]
[347631052,1735986637921,-107400.0000001,8.801e-05,7]
[347631053,1735986638004,-57084.34904169,8.801e-05,7]
[347631054,1735986638014,-100577.02864,8.801e-05,7]
[347631055,1735986638023,-150.0,9e-05,2]
[347631056,1735986638032,-150.0,9e-05,2]
[347631057,1735986638042,-400.0,9.1e-05,3]
[347631058,1735986638052,-900.0,9.2e-05,3]
[347631059,1735986638061,-1400.0,9.3e-05,3]
[347631060,1735986638070,-16698.33,9.344e-05,2]
[347631061,1735986638079,-200.0,9.362e-05,2]
[347631062,1735986638089,-150.0,9.389e-05,2]
[347631063,1735986638098,-1900.0,9.4e-05,3]
[347631064,1735986638107,-150.0,9.479e-05,2]
[347631065,1735986638117,-635.57,9.48e-05,2]
[347631066,1735986638127,-150.0,9.5e-05,2]
[347631067,1735986638136,-2300.0,9.5e-05,3]
[347631068,1735986638146,-150.0,9.513e-05,2]
[347631069,1735986638155,-32973.75966995,9.6e-05,2]
[347631070,1735986638164,-400.0,9.6e-05,3]
[347631071,1735986638173,-2222.0,9.603e-05,2]
[347631072,1735986638182,-150.0,9.648e-05,2]
[347631073,1735986638191,-150.13,9.652e-05,2]
[347631074,1735986638201,-150.0,9.652e-05,2]
[347631075,1735986638210,-150.0,9.652e-05,2]
[347631076,1735986638220,-150.0,9.652e-05,2]
[347631077,1735986638229,-1000.0,9.699e-05,2]
[347631078,1735986638238,-1004.0,9.7e-05,2]
[347631079,1735986638247,-400.0,9.7e-05,3]
[347631080,1735986638256,-400.0,9.8e-05,3]
[347631081,1735986638267,-150.0,9.854e-05,2]
[347631082,1735986638280,-715.84,9.871e-05,2]
[347631083,1735986638289,-5000.0,9.88e-05,2]
[347631084,1735986638298,-1000.0,9.884e-05,2]
[347631085,1735986638308,-13904.57254042,9.886e-05,2]
[347631086,1735986638318,-500.0,9.899e-05,2]
[347631087,1735986638327,-519.04,9.899e-05,2]
[347631089,1735986638336,-1931.12,9.899e-05,2]
[347631090,1735986638345,-740.3,9.899e-05,2]
[347631091,1735986638354,-500.0,9.899e-05,2]
[347631092,1735986638364,-500.0,9.899e-05,2]
[347631093,1735986638373,-500.0,9.899e-05,2]
[347631094,1735986638383,-500.0,9.899e-05,2]
[347631095,1735986638392,-500.0,9.899e-05,2]
[347631097,1735986638401,-400.0,9.9e-05,3]
[347631098,1735986638410,-1536.754,9.91e-05,2]
[347631100,1735986638419,-325.191322,9.973e-05,2]
[347631102,1735986638428,-151.771848,9.973e-05,2]
[347631103,1735986638437,-151.771848,9.973e-05,2]
[347631104,1735986638447,-151.771848,9.973e-05,2]
[347631105,1735986638456,-159.75984,9.973e-05,2]
[347631106,1735986638465,-151.771848,9.973e-05,2]
[347631107,1735986638475,-500.0,9.973e-05,2]
[347631108,1735986638483,-151.001848,9.973e-05,2]
[347631109,1735986638493,-427.24995785,9.973e-05,2]
[347631110,1735986638503,-159.75984,9.973e-05,2]
[347631111,1735986638512,-199.5999501,9.973e-05,2]
[347631112,1735986638522,-161.65649192,9.973e-05,2]
[347631113,1735986638531,-501.88580547,9.973e-05,2]
[347631114,1735986638541,-503.46474871,9.973e-05,2]
[347631115,1735986638550,-151.771848,9.973e-05,2]
[347631116,1735986638562,-152.770347,9.973e-05,2]
[347631117,1735986638571,-151.771848,9.973e-05,2]
[347631118,1735986638579,-151.771848,9.973e-05,2]
[347631119,1735986638592,-150.773349,9.973e-05,2]
[347631120,1735986638601,-151.0,9.973e-05,2]
[347631121,1735986638610,-151.771848,9.973e-05,2]
[347631122,1735986638620,-151.771848,9.973e-05,2]
[347631123,1735986638629,-209.68479,9.973e-05,2]
[347631124,1735986638638,-159.75984,9.973e-05,2]
[347631125,1735986638648,-150.773349,9.973e-05,2]
[347631126,1735986638657,-151.771848,9.973e-05,2]
[347631127,1735986638666,-21623.82810134,9.973e-05,2]
[347631128,1735986638675,-157.65653054,9.979e-05,2]
[347631129,1735986638684,-284.63962489,9.979e-05,2]
[347631130,1735986638693,-627.3974056,9.979e-05,2]
[347631131,1735986638702,-498.32340424,9.979e-05,2]
[347631132,1735986638712,-502.9493649,9.979e-05,2]
[347631133,1735986638721,-250.6772437,9.979e-05,2]
[347631134,1735986638731,-452.71208615,9.979e-05,2]
[347631135,1735986638740,-249.3227563,9.979e-05,2]
[347631136,1735986638749,-289.43729938,9.979e-05,2]
[347631137,1735986638759,-500.91863808,9.979e-05,2]
[347631138,1735986638768,-500.0,9.979e-05,2]
[347631139,1735986638777,-500.0,9.979e-05,2]
[347631140,1735986638786,-272.28,9.979e-05,2]
[347631141,1735986638795,-212.75,9.979e-05,2]
[347631142,1735986638806,-500.0,9.979e-05,2]
[347631143,1735986638815,-590.04,9.979e-05,2]
[347631144,1735986638824,-500.0,9.979e-05,2]
[347631145,1735986638833,-500.0,9.979e-05,2]
[347631146,1735986638842,-500.0,9.979e-05,2]
[347631147,1735986638851,-500.0,9.979e-05,2]
[347631148,1735986638860,-500.0,9.979e-05,2]
[347631149,1735986638868,-343.83,9.979e-05,2]
[347631150,1735986638878,-500.0,9.979e-05,2]
[347631151,1735986638887,-325.1701043,9.979e-05,2]
[347631152,1735986638896,-500.0,9.979e-05,2]
[347631153,1735986638905,-436.56,9.979e-05,2]
[347631154,1735986638914,-1108.79,9.979e-05,2]
[347631155,1735986638924,-500.0,9.979e-05,2]
[347631156,1735986638932,-502.08492162,9.979e-05,2]
[347631157,1735986638942,-151.0,9.979e-05,2]
[347631158,1735986638951,-380.84,9.979e-05,2]
[347631159,1735986638960,-500.0,9.979e-05,2]
[347631160,1735986638969,-500.0,9.979e-05,2]
[347631161,1735986638978,-500.0,9.979e-05,2]
[347631162,1735986638987,-2025.25,9.979e-05,2]
[347631163,1735986638996,-1143.12,9.979e-05,2]
[347631164,1735986639005,-500.0,9.979e-05,2]
[347631165,1735986639014,-500.0,9.979e-05,2]
[347631166,1735986639023,-1486.73,9.979e-05,2]
[347631167,1735986639032,-500.0,9.979e-05,2]
[347631168,1735986639041,-169.6877073,9.979e-05,2]
[347631169,1735986639050,-419.6,9.979e-05,2]
[347631170,1735986639059,-180.1522927,9.979e-05,2]
[347631171,1735986639068,-489.6909846,9.979e-05,2]
[347631172,1735986639077,-752.17,9.979e-05,2]
[347631173,1735986639087,-487.66,9.979e-05,2]
[347631174,1735986639096,-443.53,9.979e-05,2]
[347631175,1735986639105,-500.0,9.979e-05,2]
[347631176,1735986639114,-290.79,9.979e-05,2]
[347631177,1735986639123,-200.54,9.979e-05,2]
[347631178,1735986639131,-7078.9444278,9.979e-05,2]
[347631179,1735986639140,-357.66,9.979e-05,2]
[347631180,1735986639333,-500.0,9.979e-05,2]
[347631181,1735986639343,-500.0,9.979e-05,2]
[347631182,1735986639353,-359.17,9.979e-05,2]
[347631183,1735986639363,-512.26,9.979e-05,2]
[347631184,1735986639372,-1853.35,9.979e-05,2]
[347631185,1735986639381,-500.0,9.979e-05,2]
[347631186,1735986639390,-500.0,9.979e-05,2]
[347631187,1735986639399,-500.0,9.979e-05,2]
[347631188,1735986639407,-500.0,9.979e-05,2]
[347631189,1735986639417,-500.0,9.979e-05,2]
[347631190,1735986639427,-500.0,9.979e-05,2]
[347631191,1735986639436,-1516.8757306,9.979e-05,2]
[347631192,1735986639445,-274.95124582,9.979e-05,2]
[347631193,1735986639454,-870.72,9.979e-05,2]
[347631194,1735986639463,-393.345463,9.979e-05,2]
[347631195,1735986639473,-500.0,9.979e-05,2]
[347631196,1735986639481,-500.0,9.979e-05,2]
[347631197,1735986639490,-500.0,9.979e-05,2]
[347631198,1735986639499,-500.0,9.979e-05,2]
[347631199,1735986639508,-500.0,9.979e-05,2]
[347631200,1735986639517,-646.08,9.979e-05,2]
[347631201,1735986639526,-2647.23,9.979e-05,2]
[347631202,1735986639535,-500.0,9.979e-05,2]
[347631203,1735986639544,-745.44,9.979e-05,2]
[347631204,1735986639553,-500.0,9.979e-05,2]
[347631205,1735986639562,-500.0,9.979e-05,2]
[347631206,1735986639571,-500.0,9.979e-05,2]
[347631207,1735986639580,-500.0,9.979e-05,2]
[347631208,1735986639589,-696.82,9.979e-05,2]
[347631209,1735986639598,-500.0,9.979e-05,2]
[347631210,1735986639607,-500.0,9.979e-05,2]
[347631211,1735986639616,-500.0,9.979e-05,2]
[347631212,1735986639626,-642.98,9.979e-05,2]
[347631213,1735986639635,-500.0,9.979e-05,2]
[347631214,1735986639644,-648.05,9.979e-05,2]
[347631215,1735986639653,-500.0,9.979e-05,2]
[347631216,1735986639663,-316.29,9.979e-05,2]
[347631217,1735986639671,-362.54,9.979e-05,2]
[347631218,1735986639681,-500.0,9.979e-05,2]
[347631219,1735986639690,-500.0,9.979e-05,2]
[347631220,1735986639699,-500.0,9.979e-05,2]
[347631221,1735986639709,-228.63,9.979e-05,2]
[347631222,1735986639718,-515.25,9.979e-05,2]
[347631223,1735986639728,-500.0,9.979e-05,2]
[347631224,1735986639738,-500.0,9.979e-05,2]
[347631225,1735986639747,-500.0,9.979e-05,2]
[347631226,1735986639756,-701.79,9.979e-05,2]
[347631227,1735986639765,-507.5,9.979e-05,2]
[347631228,1735986639774,-500.0,9.979e-05,2]
[347631229,1735986639784,-500.0,9.979e-05,2]
[347631231,1735986639793,-540.19,9.979e-05,2]
[347631232,1735986639802,-500.0,9.979e-05,2]
[347631233,1735986639811,-500.0,9.979e-05,2]
[347631234,1735986639821,-500.0,9.979e-05,2]
[347631235,1735986639830,-500.0,9.979e-05,2]
[347631236,1735986639839,-500.0,9.979e-05,2]
[347631238,1735986639848,-500.0,9.979e-05,2]
[347631240,1735986639858,-500.0,9.979e-05,2]
[347631242,1735986639867,-591.21,9.979e-05,2]
[347631244,1735986639876,-500.0,9.979e-05,2]
[347631247,1735986639886,-500.0,9.979e-05,2]
[347631250,1735986639894,-500.0,9.979e-05,2]
[347631252,1735986639903,-500.0,9.979e-05,2]
[347631254,1735986639912,-857.36,9.979e-05,2]
[347631256,1735986639921,-512.42,9.979e-05,2]
[347631258,1735986639931,-689.37,9.979e-05,2]
[347631260,1735986639940,-500.0,9.979e-05,2]
[347631262,1735986639949,-500.0,9.979e-05,2]
[347631264,1735986639959,-500.0,9.979e-05,2]
[347631266,1735986639968,-640.37929889,9.979e-05,2]
[347631268,1735986639977,-500.0,9.979e-05,2]
[347631270,1735986639987,-500.0,9.979e-05,2]
[347631272,1735986639996,-500.0,9.979e-05,2]
[347631274,1735986640005,-390.28,9.979e-05,2]
[347631276,1735986640014,-504.54744324,9.979e-05,2]
[347631277,1735986640023,-500.0,9.979e-05,2]
[347631279,1735986640033,-500.0,9.979e-05,2]
[347631281,1735986640042,-500.0,9.979e-05,2]
[347631283,1735986640051,-500.0,9.979e-05,2]
[347631285,1735986640060,-500.0,9.979e-05,2]
[347631287,1735986640070,-328.19,9.979e-05,2]
[347631289,1735986640079,-500.0,9.979e-05,2]
[347631291,1735986640088,-500.0,9.979e-05,2]
[347631293,1735986640097,-605.2,9.979e-05,2]
[347631295,1735986640106,-500.0,9.979e-05,2]
[347631297,1735986640115,-524.60491564,9.979e-05,2]
[347631299,1735986640124,-500.0,9.979e-05,2]
[347631301,1735986640133,-833.96,9.979e-05,2]
[347631303,1735986640143,-510.15508236,9.979e-05,2]
[347631305,1735986640152,-567.99097114,9.979e-05,2]
[347631307,1735986640161,-147483.30327379,9.98e-05,2]
[347631309,1735986640170,-151.0,9.98e-05,2]
[347631310,1735986640179,-151.0,9.98e-05,2]
[347631311,1735986640187,-12441.8651661,9.986e-05,2]
[347631312,1735986640197,-10715.3451096,9.993e-05,2]
[347631313,1735986640206,-6096.6206869,9.993e-05,2]
[347631315,1735986640215,-1306.3834662,9.993e-05,2]
[347631317,1735986640224,-500.0,9.995e-05,2]
[347631319,1735986640234,-505.34486854,9.995e-05,2]
[347631321,1735986640243,-500.0,9.996e-05,2]
[347631323,1735986640252,-500.0,9.996e-05,2]
[347631325,1735986640262,-500.0,9.996e-05,2]
[347631327,1735986640273,-500.0,9.996e-05,2]
[347631329,1735986640283,-500.0,9.996e-05,2]
[347631330,1735986640292,-341.89573965,9.996e-05,2]
[347631331,1735986640302,-500.0,9.996e-05,2]
[347631332,1735986640313,-500.0,9.996e-05,2]
[347631333,1735986640322,-500.0,9.996e-05,2]
[347631334,1735986640331,-500.0,9.996e-05,2]
[347631335,1735986640341,-500.0,9.996e-05,2]
[347631336,1735986640353,-363.39013237,9.996e-05,2]
[347631337,1735986640363,-301233.56363457,9.997e-05,2]
[347631338,1735986640372,-151.0,9.997e-05,2]
[347631339,1735986640381,-5836.52250023,9.997e-05,2]
[347631340,1735986640391,-151.0,9.997e-05,2]
[347631341,1735986640399,-151.0,9.997e-05,2]
[347631342,1735986640409,-666.0,9.999e-05,2]
[347631343,1735986640418,-500.0,9.999e-05,2]
[347631344,1735986640428,-955.0,0.0001,2]
[347631345,1735986640438,-24819375.12264465,0.0001,2]
[347631346,1735986640447,-1000.0,0.0001,2]
[347631347,1735986640457,-1000.0,0.0001,2]
[347631348,1735986640466,-1001.4501,0.0001,2]
[347631349,1735986640475,-1000.0,0.0001,2]
[347631350,1735986640484,-2800.0,0.0001,2]
[347631351,1735986640495,-39279.6635039,0.0001,2]
[347631352,1735986640505,-9221877.25,0.0001,2]
[347631353,1735986640515,-1000.0,0.0001,2]
[347631354,1735986640524,-250.0,0.0001,2]
[347631355,1735986640533,-250.0,0.0001,2]
[347631356,1735986640542,-250.0,0.0001,2]
[347631357,1735986640552,-250.0,0.0001,2]
[347631358,1735986640562,-250.0,0.0001,2]
[347631359,1735986640572,-250.0,0.0001,2]
[347631360,1735986640582,-250.0,0.0001,2]
[347631361,1735986640591,-250.0,0.0001,2]
[347631362,1735986640600,-250.0,0.0001,2]
[347631363,1735986640611,-250.0,0.0001,2]
[347631364,1735986640621,-250.0,0.0001,2]
[347631365,1735986640631,-250.0,0.0001,2]
[347631366,1735986640641,-250.0,0.0001,2]
[347631367,1735986640650,-250.0,0.0001,2]
[347631368,1735986640659,-250.0,0.0001,2]
[347631369,1735986640670,-250.0,0.0001,2]
[347631370,1735986640680,-250.0,0.0001,2]
[347631371,1735986640689,-250.0,0.0001,2]
[347631372,1735986640699,-250.0,0.0001,2]
[347631373,1735986640709,-250.0,0.0001,2]
[347631374,1735986640718,-250.0,0.0001,2]
[347631375,1735986640727,-250.0,0.0001,2]
[347631376,1735986640737,-250.0,0.0001,2]
[347631377,1735986640747,-250.0,0.0001,2]
[347631378,1735986640757,-250.0,0.0001,2]
[347631379,1735986640766,-250.0,0.0001,2]
[347631380,1735986640775,-250.0,0.0001,2]
[347631381,1735986640785,-250.0,0.0001,2]
[347631382,1735986640795,-250.0,0.0001,2]
[347631383,1735986640804,-250.0,0.0001,2]
[347631384,1735986640816,-250.0,0.0001,2]
[347631385,1735986640825,-250.0,0.0001,2]
[347631386,1735986640835,-250.0,0.0001,2]
[347631387,1735986640844,-250.0,0.0001,2]
[347631388,1735986640854,-250.0,0.0001,2]
[347631389,1735986640863,-250.0,0.0001,2]
[347631390,1735986640872,-250.0,0.0001,2]
[347631391,1735986640882,-251.8,0.0001,2]
[347631392,1735986640891,-1000.0,0.0001,2]
[347631393,1735986640901,-65000.0,0.0001,2]
[347631394,1735986640912,-151.0,0.0001,2]
[347631395,1735986640922,-151.0,0.0001,2]
[347631396,1735986640931,-151.0,0.0001,2]
[347631397,1735986640940,-151.0,0.0001,2]
[347631398,1735986640949,-151.0,0.0001,2]
[347631399,1735986640959,-151.0,0.0001,2]
[347631400,1735986640968,-151.0,0.0001,2]
[347631401,1735986640978,-151.385462,0.0001,2]
[347631402,1735986640987,-229.68481333,0.0001,2]
[347631403,1735986640996,-150.0,0.0001,2]
[347631404,1735986641005,-432.09690828,0.0001,2]
[347631405,1735986641015,-1054.0,0.0001,3]
[347631406,1735986641024,-3000.0,0.0001,2]
[347631407,1735986641033,-150.0,0.00010001,2]
[347631408,1735986641043,-178.84,0.00010021,2]
[347631409,1735986641052,-150.0,0.00010036,2]
[347631410,1735986641063,-10417.78731256,0.0001007,2]
[347631411,1735986641072,-1000.0,0.000101,2]
[347631412,1735986641082,-500.0,0.00010136,2]
[347631413,1735986641091,-378.09,0.00010137,2]
[347631414,1735986641101,-273.69,0.00010137,2]
[347631415,1735986641110,-154.26,0.00010137,2]
[347631416,1735986641120,-500.0,0.00010173,2]
[347631417,1735986641129,-519.04,0.00010173,2]
[347631418,1735986641139,-1931.12,0.00010173,2]
[347631419,1735986641148,-740.3,0.00010173,2]
[347631420,1735986641157,-500.0,0.00010173,2]
[347631421,1735986641166,-500.0,0.00010173,2]
[347631422,1735986641175,-500.0,0.00010173,2]
[347631423,1735986641185,-500.0,0.00010173,2]
[347631424,1735986641194,-500.0,0.00010173,2]
[347631425,1735986641203,-151.0,0.00010197,2]
[347631426,1735986641212,-150.0,0.000102,2]
[347631427,1735986641222,-150.0,0.000102,2]
[347631428,1735986641231,-150.0,0.000102,2]
[347631429,1735986641241,-150.0,0.000102,2]
[347631430,1735986641250,-346.36090801,0.00010253,2]
[347631431,1735986641259,-500.0,0.00010253,2]
[347631432,1735986641270,-500.0,0.00010253,2]
[347631433,1735986641281,-590.04,0.00010253,2]
[347631434,1735986641290,-500.0,0.00010253,2]
[347631435,1735986641300,-500.0,0.00010253,2]
[347631436,1735986641310,-500.0,0.00010253,2]
[347631437,1735986641319,-500.0,0.00010253,2]
[347631438,1735986641328,-500.0,0.00010253,2]
[347631439,1735986641337,-500.0,0.00010253,2]
[347631440,1735986641345,-1108.79,0.00010253,2]
[347631441,1735986641354,-500.0,0.00010253,2]
[347631442,1735986641363,-151.0,0.00010253,2]
[347631443,1735986641372,-500.0,0.00010253,2]
[347631444,1735986641381,-500.0,0.00010253,2]
[347631445,1735986641391,-421.11457897,0.00010253,2]
[347631446,1735986641400,-2025.25,0.00010253,2]
[347631447,1735986641409,-1143.12,0.00010253,2]
[347631448,1735986641418,-445.4,0.00010253,2]
[347631449,1735986641427,-500.0,0.00010253,2]
[347631450,1735986641437,-1486.73,0.00010253,2]
[347631451,1735986641446,-500.0,0.00010253,2]
[347631452,1735986641455,-752.17,0.00010253,2]
[347631453,1735986641465,-500.0,0.00010253,2]
[347631454,1735986641474,-610.31667337,0.00010253,2]
[347631455,1735986641483,-500.0,0.00010253,2]
[347631456,1735986641493,-1853.35,0.00010253,2]
[347631457,1735986641502,-500.0,0.00010253,2]
[347631458,1735986641511,-500.0,0.00010253,2]
[347631459,1735986641520,-500.0,0.00010253,2]
[347631460,1735986641529,-870.72,0.00010253,2]
[347631461,1735986641539,-247.79,0.00010253,2]
[347631462,1735986641548,-500.0,0.00010253,2]
[347631463,1735986641557,-500.0,0.00010253,2]
[347631464,1735986641566,-646.08,0.00010253,2]
[347631465,1735986641575,-2647.23,0.00010253,2]
[347631466,1735986641584,-500.0,0.00010253,2]
[347631467,1735986641593,-500.0,0.00010253,2]
[347631468,1735986641603,-745.44,0.00010253,2]
[347631469,1735986641612,-500.0,0.00010253,2]
[347631470,1735986641622,-500.0,0.00010253,2]
[347631471,1735986641631,-696.82,0.00010253,2]
[347631472,1735986641642,-500.0,0.00010253,2]
[347631473,1735986641651,-500.0,0.00010253,2]
[347631474,1735986641660,-642.98,0.00010253,2]
[347631475,1735986641669,-500.0,0.00010253,2]
[347631476,1735986641680,-648.05,0.00010253,2]
[347631477,1735986641689,-500.0,0.00010253,2]
[347631478,1735986641697,-500.0,0.00010253,2]
[347631479,1735986641707,-500.0,0.00010253,2]
[347631480,1735986641716,-500.0,0.00010253,2]
[347631481,1735986641725,-515.25,0.00010253,2]
[347631482,1735986641734,-500.0,0.00010253,2]
[347631483,1735986641743,-500.0,0.00010253,2]